bitfinex-derivatives/quotes_ETHF0:USTF0_20250103
["timestamp","ask_amount","ask_price","bid_price","bid_amount"]
[1735899792742,0.29078,3441.6,3441.5,2.91703761]
[1735899793450,0.29077,3441.7,3441.6,0.29076]
[1735899794948,0.72684,3442.1,3441.5,2.62625761]
[1735899795154,0.29076,3441.9,3441.8,0.29075]
[1735899796055,0.29078,3441.7,3441.6,0.29076]
[1735899797952,0.29076,3441.8,3441.7,0.29075]
[1735899799952,0.72685,3442.1,3441.5,2.62625761]
[1735899800153,0.29078,3441.7,3441.6,0.29077]
[1735899802959,0.29076,3441.9,3441.8,0.29075]
[1735899805367,44.0078,3442.7,3441.7,3.2078]
[1735899805671,0.29074,3442.1,3442.0,0.29073]
[1735899806566,0.72678,3442.5,3441.7,3.2078]
[1735899806867,0.29073,3442.2,3442.1,0.29073]
[1735899807168,0.29072,3442.3,3442.2,0.29072]
[1735899811671,0.29072,3442.3,3442.2,1.30470984]
[1735899811868,0.29071,3442.4,3442.3,0.29071]
[1735899813071,45.74851984,3442.7,3442.2,1.01398984]
[1735899813369,0.29072,3442.3,3442.2,1.30470984]
[1735899824881,0.29071,3442.4,3442.3,0.29071]
[1735899826383,0.29072,3442.3,3442.2,0.29072]
[1735899827591,0.29072,3442.2,3442.1,10.34636651]
[1735899828291,0.29072,3442.2,3442.1,3.49852]
[1735899829688,0.29072,3442.2,3442.1,8.07078544]
[1735899831392,2.5635197,3442.3,3442.2,0.29072]
[1735899832894,0.29072,3442.3,3442.2,5.49237716]
[1735899834689,0.29072,3442.3,3442.2,10.06384347]
[1735899834888,0.29072,3442.3,3442.2,9.04985363]
[1735899835796,0.29072,3442.3,3442.2,8.75913363]
[1735899836094,0.29072,3442.3,3442.2,4.57146631]
[1735899836988,1.30470984,3442.3,3442.2,4.57146631]
[1735899839191,1.45031135,3442.3,3441.9,4.57146631]
[1735899839399,1.30472984,3442.0,3441.9,4.57146631]
[1735899841197,3.58263094,3442.0,3441.9,4.57146631]
[1735899842597,0.29075,3441.9,3441.8,4.86221631]
[1735899845395,0.29075,3441.9,3441.8,4.57146631]
[1735899846087,0.29075,3441.9,3441.8,4.86222631]
[1735899847594,2.5686411,3442.0,3441.9,0.29075]
[1735899847793,2.5686411,3442.0,3441.9,1.30473984]
[1735899848197,0.29074,3442.0,3441.9,1.30473984]
[1735899849390,2.5686411,3442.0,3441.9,5.87849103]
[1735899849796,2.2779011,3442.0,3441.9,5.87849103]
[1735899850297,2.2779011,3442.0,3441.9,9.08629103]
[1735899850900,2.2779011,3442.1,3441.9,15.25900854]
[1735899851102,2.2779011,3442.1,3442.0,0.29074]
[1735899852200,2.5686211,3442.3,3442.2,0.29072]
[1735899853805,2.5686211,3442.3,3442.2,4.86447181]
[1735899857111,2.5686211,3442.3,3442.2,4.48022574]
[1735899859909,0.29072,3442.3,3442.2,4.48022574]
[1735899861336,2.5686211,3442.3,3442.2,4.48022574]
[1735899861536,2.2779011,3442.3,3442.2,4.48022574]
[1735899862524,0.29071,3442.4,3442.3,0.29072]
[1735899862910,2.2779011,3442.5,3442.4,0.29071]
[1735899864414,2.5685811,3442.7,3442.6,0.29069]
[1735899864711,2.5685811,3442.7,3442.6,1.30467984]
[1735899865216,2.2779011,3442.7,3442.6,1.30467984]
[1735899865811,3.70753166,3442.8,3442.7,0.29068]
[1735899865812,0.29068,3442.8,3442.7,0.29068]
[1735899866209,2.2779011,3442.9,3442.6,12.0635239]
[1735899866408,2.5685711,3442.9,3442.8,1.30465984]
[1735899867311,0.29067,3442.9,3442.8,5.87504618]
[1735899868305,44.09189094,3443.1,3442.8,5.58437618]
[1735899868516,0.29066,3443.0,3442.9,0.29066]
[1735899868706,2.5685611,3443.0,3442.9,0.29066]
[1735899870220,0.29066,3443.0,3442.9,0.29066]
[1735899871315,44.09189094,3443.1,3442.7,7.77818634]
[1735899871611,0.29067,3442.9,3442.8,0.29067]
[1735899875513,0.29066,3443.0,3442.9,0.29066]
[1735899882432,0.29067,3442.9,3442.8,1.30465984]
[1735899882839,0.29067,3442.9,3442.8,1.01398984]
[1735899883035,0.29067,3442.9,3442.8,1.30465984]
[1735899883234,0.29067,3442.9,3442.8,1.01398984]
[1735899885526,0.29067,3442.9,3442.8,1.30465984]
[1735899886420,0.29067,3442.9,3442.8,1.01398984]
[1735899886821,0.29067,3442.9,3442.8,1.30465984]
[1735899897050,43.0779011,3443.1,3442.8,1.01398984]
[1735899897258,2.2779011,3443.1,3443.0,1.01398984]
[1735899897451,2.5685511,3443.1,3443.0,1.30464984]
[1735899898548,2.2779011,3443.1,3443.0,1.30464984]
[1735899898859,2.2779011,3443.2,3443.1,0.29065]
[1735899899249,2.2779011,3443.2,3443.1,1.40665]
[1735899900342,0.29061,3443.6,3443.1,14.43124192]
[1735899900544,0.29061,3443.6,3443.5,1.30460984]
[1735899901334,0.29061,3443.6,3443.5,1.01398984]
[1735899901631,0.29061,3443.6,3443.5,5.873914]
[1735899902837,0.29061,3443.6,3443.5,5.583294]
[1735899903330,0.29061,3443.6,3443.5,5.873914]
[1735899903835,0.29061,3443.6,3443.5,5.583294]
[1735899904030,0.29061,3443.6,3443.5,5.873914]
[1735899904232,0.29061,3443.6,3443.5,1.30460984]
[1735899906437,0.29061,3443.6,3443.5,1.01398984]
[1735899906636,0.29061,3443.6,3443.5,1.30460984]
[1735899907037,0.2906,3443.7,3443.6,0.2906]
[1735899907237,2.5684911,3443.8,3443.7,0.2906]
[1735899907628,2.2779011,3443.8,3443.7,1.30458984]
[1735899908436,2.2779011,3443.9,3443.8,0.29059]
[1735899908833,2.2779011,3443.9,3443.8,4.61339]
[1735899909041,2.2779011,3443.9,3443.8,5.62737984]
[1735899909240,2.2779011,3443.9,3443.8,4.61339]
[1735899910154,2.5684411,3444.4,3443.8,15.35898754]
[1735899910347,2.5684411,3444.4,3444.3,1.30453984]
[1735899910848,2.2779011,3444.4,3444.3,1.30453984]
[1735899911253,2.5684411,3444.4,3444.3,1.30453984]
[1735899911551,0.29054,3444.4,3444.3,1.30453984]
[1735899914153,0.29054,3444.4,3444.3,1.17957304]
[1735899916455,1.01398984,3444.7,3444.3,1.01398984]
[1735899916647,0.29054,3444.6,3444.5,0.29052]
[1735899918242,0.29054,3444.6,3444.5,1.30450984]
[1735899918854,1.01398984,3444.9,3444.5,1.01398984]
[1735899919156,5.4857011,3445.1,3444.5,1.01398984]
[1735899919157,3.2078,3445.1,3444.7,1.01398984]
[1735899919358,2.2779011,3445.2,3444.9,1.01398984]
[1735899919550,2.5683811,3445.2,3445.1,0.29048]
[1735899919750,2.2779011,3445.2,3445.1,1.30446984]
[1735899920057,2.5683711,3445.2,3445.1,1.30446984]
[1735899920857,0.29047,3445.3,3445.2,0.29047]
[1735899921351,0.29047,3445.2,3445.1,1.30446984]
[1735899922854,44.0078,3445.5,3445.4,0.29045]
[1735899923048,44.0078,3445.5,3445.4,1.30443984]
[1735899923357,40.8,3445.5,3445.4,1.30443984]
[1735899924650,0.29045,3445.5,3445.4,1.30443984]
[1735899925253,0.29044,3445.6,3445.5,0.29044]
[1735899926160,0.29045,3445.5,3445.4,1.30443984]
[1735899926346,0.29045,3445.5,3445.4,0.29045]
[1735899926845,0.29046,3445.4,3445.3,0.29046]
[1735899927049,0.29047,3445.2,3445.1,3.2078]
[1735899927252,0.29047,3445.2,3445.1,3.49828]
[1735899927654,0.29047,3445.2,3445.1,3.2078]
[1735899928255,0.29047,3445.2,3445.1,3.49828]
[1735899928452,0.29047,3445.2,3445.1,3.49827]
[1735899928750,0.29047,3445.2,3445.1,4.51225984]
[1735899929158,0.29047,3445.3,3445.2,0.29047]
[1735899929664,0.29046,3445.4,3445.3,0.29046]
[1735899929957,0.29046,3445.4,3445.3,1.30444984]
[1735899930359,0.29046,3445.4,3445.3,0.29046]
[1735899931364,0.29045,3445.6,3445.5,0.29044]
[1735899932266,0.29045,3445.5,3445.4,0.29045]
[1735899932564,0.29044,3445.6,3445.5,0.29044]
[1735899934268,0.29043,3445.7,3445.6,0.29043]
[1735899934669,40.8,3445.9,3445.7,0.29042]
[1735899934670,0.29043,3445.8,3445.7,0.29042]
[1735899935171,0.29044,3445.7,3445.6,0.29043]
[1735899935363,0.29045,3445.6,3445.5,0.29044]
[1735899938558,0.29044,3445.7,3445.6,0.29043]
[1735899938759,0.29043,3445.8,3445.7,0.29042]
[1735899940268,40.8,3446.0,3445.2,3.02874108]
[1735899940572,0.29044,3445.7,3445.6,0.29043]
[1735899940869,40.8,3446.0,3445.3,0.72616]
[1735899941068,0.29043,3445.8,3445.7,0.29042]
[1735899941874,0.29042,3445.9,3445.8,0.29041]
[1735899949779,40.8,3446.0,3445.4,3.93393]
[1735899949980,0.29043,3445.8,3445.7,0.29042]
[1735899950576,0.29045,3445.6,3445.5,0.29044]
[1735899952177,0.29045,3445.6,3445.5,1.30245267]
[1735899952568,1.01201267,3445.7,3445.4,3.49825]
[1735899952776,0.29045,3445.5,3445.4,3.2078]
[1735899953380,0.29045,3445.5,3445.4,3.49825]
[1735899954879,0.29045,3445.5,3445.4,3.2078]
[1735899955275,1.30246267,3445.5,3445.4,3.2078]
[1735899955678,0.29045,3445.5,3445.4,3.2078]
[1735899956278,0.29045,3445.5,3445.4,3.49825]
[1735899956579,0.29045,3445.5,3445.4,3.2078]
[1735899956777,0.29045,3445.5,3445.4,3.49825]
[1735899957085,3.0039811,3445.7,3445.6,0.29044]
[1735899957086,2.5683411,3445.7,3445.6,0.29044]
[1735899957973,0.29044,3445.7,3445.6,0.29044]
[1735899958676,2.2779011,3445.9,3445.5,1.01201267]
[1735899958878,0.29042,3445.8,3445.7,1.30243267]
[1735899959883,2.2779011,3445.9,3445.7,1.01201267]
[1735899960084,2.5683211,3445.9,3445.8,0.29042]
[1735899963183,2.2779011,3445.9,3445.8,0.29042]
[1735899963893,2.2779011,3446.0,3445.9,0.29041]
[1735899964077,2.2779011,3446.0,3445.9,1.30242267]
[1735899965184,2.5683011,3446.0,3445.9,1.30242267]
[1735899965386,2.2779011,3446.0,3445.9,1.30242267]
[1735899965776,2.5683011,3446.0,3445.9,1.30242267]
[1735899965984,0.2904,3446.0,3445.9,1.30242267]
[1735899966883,0.2904,3446.0,3445.9,0.29041]
[1735899967184,0.2904,3446.0,3445.9,4.85233334]
[1735899967886,0.2904,3446.0,3445.9,4.56192334]
[1735899968387,3.28991377,3446.1,3445.8,4.56192334]
[1735899968589,1.30242267,3445.9,3445.8,4.56192334]
[1735899969285,0.29041,3445.9,3445.8,4.85234334]
[1735899970188,2.5683111,3445.9,3445.8,0.29042]
[1735899971383,6.4376221,3445.9,3445.8,0.29042]
[1735899971583,10.94177691,3445.9,3445.8,0.29042]
[1735899972888,6.00178916,3445.9,3445.8,0.29042]
[1735899973789,5.71137916,3445.9,3445.4,5.05094]
[1735899973978,0.29043,3445.8,3445.7,0.29042]
[1735899974181,5.71137916,3445.9,3445.8,0.29042]
[1735899974383,10.65136691,3445.9,3445.8,0.29042]
[1735899975590,4.99183943,3445.9,3445.8,0.29042]
[1735899976091,5.28224943,3445.9,3445.8,0.29042]
[1735899976686,4.99183943,3445.9,3445.8,0.29042]
[1735899976894,4.55600649,3445.9,3445.8,0.29042]
[1735899977191,4.84641649,3445.9,3445.8,0.29042]
[1735899978392,0.29041,3445.9,3445.8,11.32890833]
[1735899979392,2.56890631,3446.0,3445.9,0.29041]
[1735899979690,2.27849631,3446.0,3445.9,0.29041]
[1735899980493,2.27849631,3446.0,3445.9,2.59251653]
[1735899981086,0.39249631,3446.0,3445.9,2.59251653]
[1735899981394,3.41774446,3446.4,3446.3,0.29038]
[1735899981598,3.41774446,3446.4,3446.3,5.80028653]
[1735899983088,3.41774446,3446.7,3446.3,16.5447419]
[1735899983285,3.70809446,3446.7,3446.6,0.29035]
[1735899984487,3.41774446,3446.7,3446.3,16.5447419]
[1735899984689,0.29037,3446.5,3446.4,0.29036]
[1735899985395,0.72582,3447.0,3446.3,14.64036854]
[1735899985593,0.29035,3446.7,3446.6,0.29034]
[1735899987898,0.29035,3446.6,3446.5,4.85169287]
[1735899988399,0.29035,3446.6,3446.5,0.29035]
[1735899989598,0.72582,3447.0,3446.4,7.76914287]
[1735899989800,0.29035,3446.8,3446.7,0.29033]
[1735899989999,0.29033,3447.0,3446.9,0.29032]
[1735899994102,0.43571838,3447.0,3446.9,0.29032]
[1735899994301,0.43571838,3447.0,3446.9,1.30144921]
[1735899995504,3.40953272,3447.1,3446.9,1.01112921]
[1735899995799,3.69984272,3447.1,3447.0,0.29032]
[1735899996898,3.40953272,3447.2,3446.9,1.01112921]
[1735899997095,3.40953272,3447.2,3447.1,1.30143921]
[1735899998200,3.40953272,3447.2,3447.1,0.29031]
[1735899998696,3.69981272,3447.5,3447.0,2.29980628]
[1735899998897,3.69981272,3447.5,3447.4,0.29029]
[1735899999801,3.84518402,3447.5,3447.4,0.29029]
[1735900001501,3.84518402,3447.5,3447.3,2.29980628]
[1735900001502,0.29026,3447.7,3447.3,2.29980628]
[1735900001702,0.29028,3447.6,3447.5,0.29027]
[1735900004702,0.72559,3448.1,3447.3,2.29980628]
[1735900004902,0.29026,3447.8,3447.7,0.29025]
[1735900009609,4.13512272,3448.1,3447.6,3.2078]
[1735900009811,4.13512272,3448.1,3447.6,3.49807]
[1735900009812,0.29026,3447.7,3447.6,3.49807]
[1735900010015,0.29026,3447.8,3447.7,0.29025]
[1735900010315,0.29025,3447.9,3447.8,0.29025]
[1735900011214,0.29026,3447.8,3447.7,0.29025]
[1735900011516,0.29025,3447.9,3447.8,0.29024]
[1735900013311,4.13510272,3448.2,3447.6,3.2078]
[1735900013312,3.40953272,3448.2,3447.6,4.3258]
[1735900013512,0.29025,3448.0,3447.9,0.29023]
[1735900013914,0.29026,3447.8,3447.7,0.29025]
[1735900015516,0.29026,3447.7,3447.6,1.40826]
[1735900016816,0.29026,3447.7,3447.6,0.29026]
[1735900018316,0.29026,3447.7,3447.6,1.64898608]
[1735900024221,0.29026,3447.7,3447.6,1.64938193]
[1735900024417,0.29026,3447.7,3447.6,1.3009601]
[1735900024621,0.29026,3447.7,3447.6,1.6494712]
[1735900025023,0.29026,3447.7,3447.6,1.64948544]
[1735900026916,0.29026,3447.7,3447.6,1.3009601]
[1735900027122,0.29026,3447.7,3447.6,1.64972806]
[1735900027822,0.29026,3447.7,3447.6,0.63902796]
[1735900028023,1.3009601,3447.7,3447.6,0.63902796]
[1735900028321,0.29026,3447.7,3447.6,0.63902796]
[1735900033528,0.29026,3447.7,3447.6,0.29026]
[1735900033721,0.29026,3447.7,3447.6,0.639445]
[1735900034224,0.29026,3447.7,3447.6,0.63944467]
[1735900034919,0.29024,3448.1,3448.0,0.29023]
[1735900035223,3.40953272,3448.3,3448.0,1.35988477]
[1735900035428,3.69974272,3448.3,3448.2,1.3009201]
[1735900035720,3.69974272,3448.3,3448.2,1.65010477]
[1735900036324,3.69974272,3448.3,3448.2,1.65000709]
[1735900036515,3.40953272,3448.3,3448.2,1.65000709]
[1735900036922,3.69974272,3448.3,3448.2,1.65000709]
[1735900037223,3.40953272,3448.3,3448.2,1.65000709]
[1735900037418,0.2902,3448.5,3448.4,0.2902]
[1735900037618,0.2902,3448.5,3448.4,1.64998709]
[1735900039221,3.40953272,3448.6,3448.5,0.29019]
[1735900039423,3.69972272,3448.6,3448.5,0.63927699]
[1735900039724,3.69972272,3448.6,3448.5,0.63893408]
[1735900040326,0.72569213,3448.6,3448.5,0.63893408]
[1735900040931,0.72569213,3448.6,3448.4,1.0107001]
[1735900040932,0.29019,3448.5,3448.4,1.0107001]
[1735900041324,0.29019,3448.5,3448.4,1.3009001]
[1735900042922,0.72569213,3448.6,3448.5,0.29019]
[1735900043226,0.29019,3448.6,3448.5,0.29019]
[1735900044124,0.2902,3448.5,3448.4,0.29019]
[1735900044327,0.2902,3448.5,3448.4,1.3008901]
[1735900044827,3.70479475,3448.6,3448.5,0.29019]
[1735900046327,0.29019,3448.6,3448.5,0.29019]
[1735900046526,0.29019,3448.5,3448.4,5.86224297]
[1735900047327,0.29019,3448.5,3448.4,4.56134287]
[1735900047632,0.29019,3448.5,3448.4,1.0107001]
[1735900047930,0.29019,3448.5,3448.4,1.35901763]
[1735900048621,0.29019,3448.5,3448.4,1.64921763]
[1735900048831,0.29019,3448.5,3448.4,1.6491965]
[1735900051733,0.29019,3448.6,3448.5,0.29018]
[1735900051927,0.29019,3448.6,3448.5,1.3008801]
[1735900052237,0.29019,3448.7,3448.6,0.29018]
[1735900052430,0.29019,3448.7,3448.6,1.3008801]
[1735900053231,0.2902,3448.5,3448.4,0.29019]
[1735900053531,0.2902,3448.5,3448.4,1.64915139]
[1735900054437,0.2902,3448.5,3448.4,1.3008901]
[1735900054635,0.2902,3448.5,3448.4,0.34827085]
[1735900054940,1.0107001,3448.6,3448.3,4.56134287]
[1735900054941,0.2902,3448.4,3448.3,4.56134287]
[1735900055729,0.2902,3448.4,3448.3,5.57204297]
[1735900056344,0.2902,3448.4,3448.3,1.0107001]
[1735900057836,0.2902,3448.4,3448.3,1.3591104]
[1735900058239,0.2902,3448.4,3448.3,1.35910669]
[1735900059032,0.2902,3448.4,3448.3,1.64931669]
[1735900059444,4.14007475,3448.6,3448.5,0.29019]
[1735900059445,3.41460475,3448.6,3448.5,0.29019]
[1735900059746,3.93318,3449.1,3448.5,1.35910669]
[1735900059747,3.41460475,3448.7,3448.5,1.35910669]
[1735900059947,3.70478475,3448.7,3448.6,1.64929669]
[1735900060239,3.41460475,3448.7,3448.6,0.63859659]
[1735900060644,3.70478475,3448.7,3448.6,0.63859659]
[1735900061343,3.70478475,3448.7,3448.6,0.6387089]
[1735900061943,3.70478475,3448.7,3448.6,0.63877465]
[1735900062741,3.70478475,3448.7,3448.6,0.29019]
[1735900062943,4.14025586,3448.7,3448.6,0.29019]
[1735900063646,3.85007586,3448.7,3448.6,0.29019]
[1735900063842,3.85007586,3448.7,3448.6,0.63893981]
[1735900064349,4.14025586,3448.7,3448.6,0.63893566]
[1735900064853,3.85007586,3448.7,3448.6,0.63893566]
[1735900066450,3.70477475,3448.9,3448.8,0.29017]
[1735900066749,3.70477475,3448.9,3448.8,0.63891566]
[1735900067948,0.29017,3448.9,3448.8,0.63891566]
[1735900068747,0.29017,3448.9,3448.8,0.34874566]
[1735900070558,0.29017,3448.8,3448.7,0.29018]
[1735900070755,0.29017,3448.8,3448.7,0.63890232]
[1735900071050,0.29017,3448.8,3448.7,0.34872232]
[1735900071258,0.29017,3448.8,3448.7,0.63890232]
[1735900073455,0.29017,3448.8,3448.7,0.63890678]
[1735900075360,0.29017,3448.8,3448.7,0.34872678]
[1735900076564,3.41460475,3449.0,3448.7,0.34871615]
[1735900076759,0.29016,3448.9,3448.8,0.34871615]
[1735900077763,0.29019,3448.6,3448.5,0.29019]
[1735900077970,0.29019,3448.6,3448.5,0.63890641]
[1735900079667,0.29019,3448.6,3448.5,5.2002563]
[1735900079855,0.29019,3448.6,3448.5,4.56134287]
[1735900081056,4.14032084,3448.6,3448.3,4.56134287]
[1735900081259,0.2902,3448.4,3448.3,4.56134287]
[1735900082463,0.2902,3448.4,3448.3,5.57171473]
[1735900083059,4.14033084,3448.4,3448.3,1.01037186]
[1735900084063,4.14033084,3448.4,3448.3,1.30058186]
[1735900084967,5.18595078,3448.4,3448.3,1.01037186]
[1735900085165,5.18595078,3448.4,3448.3,1.30058186]
[1735900086067,5.18595078,3448.4,3448.3,1.35902216]
[1735900086367,0.2902,3448.4,3448.3,1.35902216]
[1735900087668,0.2902,3448.4,3448.3,1.64923216]
[1735900087868,0.72572609,3448.4,3448.3,1.64923216]
[1735900088567,0.72572609,3448.4,3448.3,1.35902216]
[1735900088960,5.28400106,3448.4,3448.3,1.35902216]
[1735900089363,5.28400106,3448.4,3448.3,1.64923216]
[1735900090566,5.28400106,3448.4,3448.3,1.35902216]
[1735900091167,5.28400106,3448.4,3448.3,1.35904541]
[1735900091368,0.72572609,3448.4,3448.3,1.35904541]
[1735900092568,0.72572609,3448.4,3448.3,1.01037186]
[1735900092971,5.28400106,3448.4,3448.3,1.01037186]
[1735900094276,5.18411632,3448.4,3448.3,1.01037186]
[1735900095675,0.2902,3448.4,3448.3,1.01037186]
[1735900096975,5.28241609,3448.4,3448.3,1.01037186]
[1735900099170,0.29024,3448.1,3448.0,0.29023]
[1735900099369,0.29024,3448.1,3448.0,1.64925204]
[1735900100371,0.29024,3448.1,3448.0,1.6492819]
[1735900100775,0.29024,3448.1,3448.0,5.87635285]
[1735900100972,0.29024,3448.1,3448.0,5.87638386]
[1735900103069,0.29024,3448.1,3448.0,5.87644826]
[1735900106580,0.29024,3448.1,3448.0,10.43952089]
[1735900106770,0.29024,3448.1,3448.0,10.43966688]
[1735900109484,0.29024,3448.1,3448.0,5.87659425]
[1735900109681,0.29024,3448.1,3448.0,5.87682431]
[1735900109882,0.29024,3448.1,3448.0,6.22597581]
[1735900110382,0.29024,3448.1,3448.0,6.2259758]
[1735900113385,0.29024,3448.1,3448.0,1.99890485]
[1735900114189,0.29024,3448.1,3448.0,0.69830299]
[1735900114581,3.70787899,3448.1,3448.0,0.3491515]
[1735900115991,5.18042547,3448.1,3448.0,0.3491515]
[1735900116879,10.18042547,3448.1,3448.0,0.3491515]
[1735900117083,0.29029,3447.3,3447.2,0.2903]
[1735900117984,0.29029,3447.4,3447.3,0.29029]
[1735900118688,3.70288795,3447.4,3447.3,0.29029]
[1735900119597,0.29029,3447.3,3447.2,1.30067186]
[1735900121487,0.29029,3447.3,3447.2,5.86419664]
[1735900123992,0.29029,3447.3,3447.2,1.30067186]
[1735900131398,0.29029,3447.4,3447.3,0.29028]
[1735900133098,2.27425365,3447.8,3447.2,1.01037186]
[1735900133301,2.56450365,3447.8,3447.7,1.30063186]
[1735900133498,2.56450365,3447.8,3447.7,1.01037186]
[1735900133798,2.56450365,3447.8,3447.7,1.30063186]
[1735900134695,0.29025,3447.8,3447.7,1.30063186]
[1735900134896,2.27425365,3447.9,3447.8,0.29025]
[1735900135503,2.56449365,3447.9,3447.8,0.29025]
[1735900136404,2.56449365,3448.0,3447.9,0.29024]
[1735900136604,2.56449365,3448.0,3447.9,1.30061186]
[1735900138711,0.29026,3447.8,3447.7,1.30062186]
[1735900141409,2.27425365,3447.9,3447.3,4.56352478]
[1735900141614,0.29029,3447.5,3447.4,1.30065186]
[1735900148108,2.27425365,3447.8,3447.4,1.01037186]
[1735900148315,2.56450365,3447.8,3447.7,1.30063186]
[1735900149619,2.56450365,3447.8,3447.7,0.29026]
[1735900150218,0.29025,3447.8,3447.7,0.29026]
[1735900151518,0.29025,3447.8,3447.7,1.30063186]
[1735900154017,2.27425365,3447.9,3447.5,5.57389664]
[1735900154314,0.29027,3447.7,3447.6,0.29027]
[1735900156120,0.29027,3447.7,3447.6,4.85379478]
[1735900156818,1.30064186,3447.7,3447.6,4.56352478]
[1735900157716,3.57489551,3447.7,3447.6,4.56352478]
[1735900159322,0.29028,3447.5,3447.4,4.85380478]
[1735900160322,0.29028,3447.5,3447.4,4.59113849]
[1735900161018,3.4211648,3447.6,3447.5,0.29028]
[1735900161325,3.4211648,3447.6,3447.5,1.30065186]
[1735900161824,3.4211648,3447.6,3447.5,12.44635105]
[1735900163225,2.28142728,3447.9,3447.5,25.61601021]
[1735900163525,2.28142728,3447.9,3447.8,0.29025]
[1735900163526,2.57167728,3447.9,3447.8,0.29025]
[1735900164631,2.28142728,3447.9,3447.8,4.59110849]
[1735900165425,2.28142728,3447.9,3447.8,5.71010849]
[1735900166429,2.28142728,3448.1,3448.0,0.29024]
[1735900166725,2.28142728,3448.1,3448.0,4.50841186]
[1735900167323,2.57164728,3448.2,3448.0,11.06631804]
[1735900167521,2.57164728,3448.2,3448.1,0.29023]
[1735900168129,2.28142728,3448.2,3448.1,0.29023]
[1735900168628,2.57164728,3448.3,3448.1,4.56444371]
[1735900168829,2.57164728,3448.3,3448.2,1.30059186]
[1735900170823,2.57164728,3448.3,3448.2,1.01037186]
[1735900172131,0.29023,3448.1,3448.0,9.07284557]
[1735900172327,1.30060186,3448.1,3448.0,4.56444371]
[1735900173535,4.43153666,3448.1,3447.9,6.84814618]
[1735900173835,0.29024,3448.0,3447.9,6.84814618]
[1735900174722,5.27598838,3448.0,3447.9,6.84814618]
[1735900176233,7.57599006,3448.0,3447.9,6.84814618]
[1735900177641,7.41787429,3448.0,3447.9,6.84814618]
[1735900178638,2.59024168,3448.0,3447.9,6.84814618]
[1735900179639,0.29029,3447.3,3447.2,4.85474371]
[1735900181042,0.29029,3447.3,3447.2,4.56444371]
[1735900181432,2.5696953,3447.3,3447.2,0.2903]
[1735900182031,0.2903,3447.2,3447.1,3.4981]
[1735900182934,2.5697053,3447.3,3447.2,0.2903]
[1735900185338,0.2903,3447.3,3447.2,0.2903]
[1735900189743,0.2903,3447.3,3447.2,7.15474539]
[1735900191732,2.2794053,3447.6,3447.2,6.86444539]
[1735900191937,2.2794053,3447.6,3447.5,2.59028168]
[1735900191938,2.5696853,3447.6,3447.5,2.59028168]
[1735900192445,0.29029,3447.4,3447.3,0.29028]
[1735900192946,0.29029,3447.3,3447.2,4.85474371]
[1735900194137,0.29029,3447.3,3447.2,9.14931598]
[1735900195447,0.29029,3447.3,3447.2,0.2903]
[1735900196241,0.29029,3447.3,3447.2,1.30125322]
[1735900202436,0.2903,3447.2,3447.1,8.06254371]
[1735900202640,0.2903,3447.2,3447.1,9.07349693]
[1735900203850,0.2903,3447.2,3447.1,4.50905322]
[1735900205048,0.2903,3447.2,3447.1,5.86569693]
[1735900205244,0.2903,3447.2,3447.1,9.07349693]
[1735900207655,0.2903,3447.2,3447.1,4.50905322]
[1735900207846,0.2903,3447.2,3447.1,3.4981]
[1735900208047,0.2903,3447.2,3447.1,4.50905322]
[1735900211460,2.5696853,3447.5,3447.4,0.29029]
[1735900211650,2.5696853,3447.5,3447.4,1.30124322]
[1735900211949,2.2794053,3447.5,3447.4,1.30124322]
[1735900212356,0.29027,3447.6,3447.5,0.29028]
[1735900212357,2.5696753,3447.6,3447.5,0.29028]
[1735900213551,0.29027,3447.6,3447.5,0.29028]
[1735900214855,2.5696753,3447.6,3447.5,0.29028]
[1735900216049,2.2794053,3447.6,3447.5,0.29028]
[1735900217563,2.2794053,3447.7,3447.6,0.29027]
[1735900217859,2.2794053,3447.7,3447.6,1.30122322]
[1735900218861,2.2794053,3447.8,3447.6,5.3090258]
[1735900219064,2.2794053,3447.8,3447.7,0.29026]
[1735900219470,2.5696553,3447.8,3447.7,0.29026]
[1735900219867,0.29026,3447.7,3447.6,4.58834258]
[1735900220164,0.29026,3447.7,3447.6,0.29027]
[1735900221665,0.29026,3447.7,3447.6,4.59020722]
[1735900223167,2.2794053,3447.8,3447.6,4.29993722]
[1735900223464,2.2794053,3447.8,3447.7,1.30121322]
[1735900224262,2.5696553,3447.8,3447.7,1.30121322]
[1735900224464,2.2794053,3447.8,3447.7,1.30121322]
[1735900225060,3.41910796,3447.9,3447.7,12.16112043]
[1735900225061,2.2794053,3447.9,3447.7,12.16112043]
[1735900225253,2.2794053,3447.9,3447.8,0.29025]
[1735900226557,2.5696453,3447.9,3447.8,4.8554728]
[1735900226964,2.2794053,3447.9,3447.8,4.8554728]
[1735900227769,0.29024,3447.9,3447.8,4.8554728]
[1735900229275,0.29024,3447.9,3447.8,0.29025]
[1735900230277,3.41910796,3448.0,3447.7,1.01095322]
[1735900230479,3.70934796,3448.0,3447.9,1.30119322]
[1735900231971,0.29024,3448.0,3447.9,1.01095322]
[1735900232378,4.43006118,3448.1,3447.8,0.29025]
[1735900232679,0.29024,3447.9,3447.8,0.29025]
[1735900232976,2.57159145,3447.9,3447.8,0.29025]
[1735900233675,0.29025,3447.8,3447.7,4.5652228]
[1735900234376,3.29230467,3447.9,3447.6,4.8554928]
[1735900234578,0.29026,3447.7,3447.6,4.8554928]
[1735900238777,2.28135145,3447.9,3447.6,4.5652228]
[1735900238979,2.28135145,3447.9,3447.8,1.30120322]
[1735900239883,2.57157145,3448.2,3448.1,0.29023]
[1735900240986,0.29022,3448.2,3448.1,0.29023]
[1735900242882,3.70931796,3448.3,3448.2,0.29022]
[1735900245185,0.29021,3448.3,3448.2,0.29022]
[1735900245886,4.43006118,3448.4,3448.1,1.01095322]
[1735900246090,0.29022,3448.2,3448.1,0.29022]
[1735900247090,0.29024,3448.1,3448.0,0.29023]
[1735900247986,0.29024,3448.0,3447.9,4.50899322]
[1735900248193,0.29024,3447.9,3447.8,4.56039476]
[1735900248983,2.28087714,3448.0,3447.7,5.86159798]
[1735900249187,0.29025,3447.8,3447.7,5.86160798]
[1735900251597,0.29025,3447.8,3447.7,5.57134798]
[1735900251798,0.29025,3447.8,3447.7,5.86160798]
[1735900255905,0.29025,3447.8,3447.7,10.1875444]
[1735900256298,0.29025,3447.8,3447.7,9.8972844]
[1735900256496,0.29025,3447.8,3447.7,10.1875444]